fUSD/lending_fUSD_20251212
["ID","MTS","AMOUNT","RATE_DAILY","PERIOD"]
[398381339,1765559644980,-150.0,0.00041673,120]
[398381340,1765559645023,-500.0,0.000418,120]
[398381341,1765559645064,-500.0,0.000418,120]
[398381342,1765559645106,-1222.0,0.0004181,30]
[398381343,1765559645148,-589.0,0.0004186,120]
[398381344,1765559645190,-589.0,0.0004186,120]
[398381345,1765559645232,-589.0,0.0004186,120]
[398381346,1765559645272,-589.0,0.0004186,120]
[398381347,1765559645314,-589.0,0.0004186,120]
[398381348,1765559645361,-589.0,0.0004186,120]
[398381349,1765559645406,-589.0,0.0004186,120]
[398381350,1765559645452,-589.0,0.0004186,120]
[398381351,1765559645495,-589.0,0.0004186,120]
[398381352,1765559645540,-589.0,0.0004186,120]
[398381353,1765559645582,-589.0,0.0004186,120]
[398381354,1765559645624,-617.0,0.0004186,120]
[398381355,1765559645665,-617.0,0.0004186,120]
[398381356,1765559645706,-617.0,0.0004186,120]
[398381357,1765559645748,-617.0,0.0004186,120]
[398381358,1765559645794,-617.0,0.0004186,120]
[398381359,1765559645837,-617.0,0.0004186,120]
[398381360,1765559645878,-617.0,0.0004186,120]
[398381361,1765559645918,-617.0,0.0004186,120]
[398381362,1765559645957,-617.0,0.0004186,120]
[398381363,1765559646001,-617.0,0.0004186,120]
[398381364,1765559646039,-617.0,0.0004186,120]
[398381365,1765559646079,-490.0,0.0004186,120]
[398381366,1765559646120,-490.0,0.0004186,120]
[398381367,1765559646164,-490.0,0.0004186,120]
[398381368,1765559646211,-490.0,0.0004186,120]
[398381369,1765559646255,-490.0,0.0004186,120]
[398381370,1765559646299,-490.0,0.0004186,120]
[398381371,1765559646344,-490.0,0.0004186,120]
[398381372,1765559646390,-490.0,0.0004186,120]
[398381373,1765559646437,-490.0,0.0004186,120]
[398381374,1765559646486,-490.0,0.0004186,120]
[398381375,1765559646533,-490.0,0.0004186,120]
[398381376,1765559646579,-490.0,0.0004186,120]
[398381377,1765559646625,-490.0,0.0004186,120]
[398381378,1765559646672,-300.122313,0.00041894,108]
[398381379,1765559646719,-150.0,0.00041917,60]
[398381380,1765559646767,-150.0,0.00041917,60]
[398381381,1765559646813,-500.0,0.00041917,30]
[398381382,1765559646857,-1981.87413775,0.00041917,30]
[398381383,1765559646899,-500.0,0.00041917,30]
[398381384,1765559646941,-500.0,0.00041917,30]
[398381385,1765559646986,-500.0,0.00041917,30]
[398381386,1765559647029,-500.0,0.00041917,30]
[398381387,1765559647077,-382.66975973,0.00041917,30]
[398381388,1765559647122,-500.0,0.00041917,30]
[398381389,1765559647292,-500.0,0.00041917,30]
[398381390,1765559647339,-681.75,0.00041917,30]
[398381391,1765559647385,-500.0,0.00041917,30]
[398381392,1765559647430,-500.0,0.00041917,30]
[398381393,1765559647475,-500.0,0.00041917,30]
[398381394,1765559647523,-352.38132259,0.00041917,30]
[398381395,1765559647569,-208.48848083,0.00041917,30]
[398381396,1765559647615,-452.72073358,0.00041917,30]
[398381397,1765559647660,-500.0,0.00041917,30]
[398381398,1765559647706,-500.0,0.00041917,30]
[398381399,1765559647757,-500.0,0.00041917,30]
[398381400,1765559647809,-710.84,0.00041917,30]
[398381401,1765559647860,-713.89,0.00041917,30]
[398381402,1765559647912,-809.28,0.00041917,30]
[398381403,1765559647966,-642.87,0.00041917,30]
[398381404,1765559648020,-500.0,0.00041917,30]
[398381405,1765559648069,-644.63,0.00041917,30]
[398381406,1765559648117,-500.0,0.00041917,30]
[398381407,1765559648163,-500.0,0.00041917,30]
[398381408,1765559648210,-500.0,0.00041917,30]
[398381409,1765559648256,-500.0,0.00041917,30]
[398381410,1765559648303,-500.0,0.00041917,30]
[398381411,1765559648351,-500.0,0.00041917,30]
[398381412,1765559648398,-500.0,0.00041917,30]
[398381413,1765559648447,-500.0,0.00041917,30]
[398381414,1765559648492,-500.0,0.00041917,30]
[398381415,1765559648540,-500.0,0.00041917,30]
[398381416,1765559648587,-500.0,0.00041917,30]
[398381417,1765559648634,-563.19,0.00041917,30]
[398381418,1765559648684,-1307.39,0.00041917,30]
[398381419,1765559648727,-500.0,0.00041917,30]
[398381420,1765559648772,-500.0,0.00041917,30]
[398381421,1765559648817,-580.19,0.00041917,30]
[398381422,1765559648859,-500.0,0.00041917,30]
[398381423,1765559648903,-615.99,0.00041917,30]
[398381424,1765559648950,-500.0,0.00041917,30]
[398381425,1765559649002,-500.0,0.00041917,30]
[398381426,1765559649054,-500.0,0.00041917,30]
[398381427,1765559649103,-500.0,0.00041917,30]
[398381428,1765559649151,-629.98,0.00041917,30]
[398381429,1765559649200,-218.13,0.00041917,30]
[398381430,1765559649246,-589.28,0.00041917,30]
[398381431,1765559649291,-380.63931174,0.00041917,30]
[398381432,1765559649335,-511.5,0.00041917,30]
[398381433,1765559649381,-504.49,0.00041917,30]
[398381434,1765559649426,-665.47,0.00041917,30]
[398381435,1765559649472,-523.82348907,0.00041917,30]
[398381436,1765559649513,-500.0,0.00041917,30]
[398381437,1765559649555,-500.0,0.00041917,30]
[398381438,1765559649597,-500.0,0.00041917,30]
[398381439,1765559649640,-500.0,0.00041917,30]
[398381440,1765559649682,-500.0,0.00041917,30]
[398381441,1765559649722,-500.0,0.00041917,30]
[398381442,1765559649762,-500.0,0.00041917,30]
[398381443,1765559649800,-796.43,0.00041917,30]
[398381444,1765559649841,-500.0,0.00041917,30]
[398381445,1765559649881,-667.67,0.00041917,30]
[398381446,1765559649923,-535.37,0.00041917,30]
[398381447,1765559649963,-500.0,0.00041917,30]
[398381448,1765559650009,-500.0,0.00041917,30]
[398381449,1765559650052,-500.0,0.00041917,30]
[398381450,1765559650093,-500.0,0.00041917,30]
[398381451,1765559650135,-500.0,0.00041917,30]
[398381452,1765559650182,-500.0,0.00041917,30]
[398381453,1765559650236,-511.59515299,0.00041917,30]
[398381454,1765559650291,-620.9,0.00041917,30]
[398381455,1765559650336,-500.0,0.00041917,30]
[398381456,1765559650383,-642.19,0.00041917,30]
[398381457,1765559650429,-500.0,0.00041917,30]
[398381458,1765559650475,-500.0,0.00041917,30]
[398381459,1765559650522,-382.17534926,0.00041917,30]
[398381460,1765559650567,-974.75,0.00041917,30]
[398381461,1765559650612,-561.38,0.00041917,30]
[398381462,1765559650658,-507.61,0.00041917,30]
[398381463,1765559650702,-500.0,0.00041917,30]
[398381464,1765559650746,-500.0,0.00041917,30]
[398381465,1765559650790,-500.0,0.00041917,30]
[398381466,1765559650833,-500.0,0.00041917,30]
[398381467,1765559650886,-500.0,0.00041917,30]
[398381468,1765559650933,-512.36,0.00041917,30]
[398381469,1765559650982,-500.0,0.00041917,30]
[398381470,1765559651025,-834.91,0.00041917,30]
[398381471,1765559651068,-500.0,0.00041917,30]
[398381472,1765559651110,-500.0,0.00041917,30]
[398381473,1765559651421,-500.0,0.0004193,60]
[398381474,1765559651477,-1003.0,0.00041947,120]
[398381475,1765559651524,-50000.0,0.00042,42]
[398381476,1765559651568,-207.2,0.00042,30]
[398381477,1765559651611,-500.0,0.00042,120]
[398381478,1765559651655,-1254.75367914,0.00042,120]
[398381479,1765559651698,-2000.0,0.00042,60]
[398381480,1765559651741,-1000.0,0.00042,120]
[398381481,1765559651783,-1000.0,0.00042,120]
[398381482,1765559651826,-97889.78901135,0.00042,30]
[398381483,1765559651867,-1000.0,0.00042,30]
[398381484,1765559651909,-7074.48,0.00042,30]
[398381485,1765559651952,-150.0,0.00042,60]
[398381486,1765559651998,-233.0285388,0.00042191,30]
[398381487,1765559652043,-1981.87413775,0.00042191,30]
[398381488,1765559652088,-573.27327042,0.00042191,30]
[398381489,1765559652134,-500.0,0.00042191,30]
[398381490,1765559652180,-190.56969009,0.00042191,30]
[398381491,1765559652225,-500.0,0.00042191,30]
[398381492,1765559652274,-335.68709787,0.00042191,30]
[398381493,1765559652320,-500.0,0.00042191,30]
[398381494,1765559652366,-681.75,0.00042191,30]
[398381495,1765559652412,-500.0,0.00042191,30]
[398381496,1765559652458,-252.22729471,0.00042191,30]
[398381497,1765559652499,-154.09203153,0.00042191,30]
[398381498,1765559652540,-500.0,0.00042191,30]
[398381499,1765559652586,-500.0,0.00042191,30]
[398381500,1765559652633,-442.36632741,0.00042191,30]
[398381501,1765559652679,-710.84,0.00042191,30]
[398381502,1765559652720,-713.89,0.00042191,30]
[398381503,1765559652762,-809.28,0.00042191,30]
[398381504,1765559652805,-642.87,0.00042191,30]
[398381505,1765559652848,-500.0,0.00042191,30]
[398381506,1765559652893,-644.63,0.00042191,30]
[398381507,1765559652939,-645.30610635,0.00042191,30]
[398381508,1765559652983,-500.0,0.00042191,30]
[398381509,1765559653027,-500.0,0.00042191,30]
[398381510,1765559653070,-500.0,0.00042191,30]
[398381511,1765559653114,-292.10526468,0.00042191,30]
[398381512,1765559653161,-629.1021146,0.00042191,30]
[398381513,1765559653208,-500.0,0.00042191,30]
[398381514,1765559653257,-500.0,0.00042191,30]
[398381515,1765559653301,-500.0,0.00042191,30]
[398381516,1765559653348,-500.0,0.00042191,30]
[398381517,1765559653395,-500.0,0.00042191,30]
[398381518,1765559653441,-563.19,0.00042191,30]
[398381519,1765559653487,-1307.39,0.00042191,30]
[398381520,1765559653531,-500.0,0.00042191,30]
[398381521,1765559653577,-500.0,0.00042191,30]
[398381522,1765559653623,-580.19,0.00042191,30]
[398381523,1765559653669,-500.0,0.00042191,30]
[398381524,1765559653713,-615.99,0.00042191,30]
[398381525,1765559653756,-500.0,0.00042191,30]
[398381526,1765559653798,-500.0,0.00042191,30]
[398381527,1765559653840,-500.0,0.00042191,30]
[398381528,1765559653884,-500.0,0.00042191,30]
[398381529,1765559653927,-629.98,0.00042191,30]
[398381530,1765559653973,-589.28,0.00042191,30]
[398381531,1765559654017,-511.5,0.00042191,30]
[398381532,1765559654060,-504.49,0.00042191,30]
[398381533,1765559654102,-665.47,0.00042191,30]
[398381534,1765559654147,-500.0,0.00042191,30]
[398381535,1765559654191,-500.0,0.00042191,30]
[398381536,1765559654238,-500.0,0.00042191,30]
[398381537,1765559654283,-630.66134823,0.00042191,30]
[398381538,1765559654331,-500.0,0.00042191,30]
[398381539,1765559654377,-500.0,0.00042191,30]
[398381540,1765559654529,-589.37886254,0.00042191,30]
[398381541,1765559654577,-796.43,0.00042191,30]
[398381542,1765559654625,-500.0,0.00042191,30]
[398381543,1765559654670,-667.67,0.00042191,30]
[398381544,1765559654717,-535.37,0.00042191,30]
[398381545,1765559654759,-500.0,0.00042191,30]
[398381546,1765559654801,-500.0,0.00042191,30]
[398381547,1765559654844,-500.0,0.00042191,30]
[398381548,1765559654887,-495.16487763,0.00042191,30]
[398381549,1765559654930,-325.72903644,0.00042191,30]
[398381550,1765559654979,-500.0,0.00042191,30]
[398381551,1765559655028,-620.9,0.00042191,30]
[398381552,1765559655079,-500.0,0.00042191,30]
[398381553,1765559655130,-642.19,0.00042191,30]
[398381554,1765559655178,-500.0,0.00042191,30]
[398381555,1765559655227,-500.0,0.00042191,30]
[398381556,1765559655276,-974.75,0.00042191,30]
[398381557,1765559655326,-561.38,0.00042191,30]
[398381558,1765559655379,-507.61,0.00042191,30]
[398381559,1765559655423,-500.0,0.00042191,30]
[398381560,1765559655472,-500.0,0.00042191,30]
[398381561,1765559655514,-506.35484518,0.00042191,30]
[398381562,1765559655558,-500.0,0.00042191,30]
[398381563,1765559655606,-500.0,0.00042191,30]
[398381564,1765559655656,-512.36,0.00042191,30]
[398381565,1765559655703,-500.0,0.00042191,30]
[398381566,1765559655747,-834.91,0.00042191,30]
[398381567,1765559655797,-500.0,0.00042191,30]
[398381568,1765559655841,-500.0,0.00042191,30]
[398381569,1765559655882,-1100.0,0.00042204,60]
[398381570,1765559655924,-1500.0,0.00042204,60]
[398381571,1765559655966,-1222.0,0.00042228,30]
[398381572,1765559656014,-497053.9875,0.00042257,30]
[398381573,1765559656059,-594.0,0.00042335,120]
[398381574,1765559656103,-594.0,0.00042335,120]
[398381575,1765559656147,-594.0,0.00042335,120]
[398381576,1765559656191,-594.0,0.00042335,120]
[398381577,1765559656238,-594.0,0.00042335,120]
[398381578,1765559656282,-594.0,0.00042335,120]
[398381579,1765559656333,-594.0,0.00042335,120]
[398381580,1765559656378,-594.0,0.00042335,120]
[398381581,1765559656425,-594.0,0.00042335,120]
[398381582,1765559656477,-594.0,0.00042335,120]
[398381583,1765559656528,-594.0,0.00042335,120]
[398381584,1765559656574,-594.0,0.00042335,120]
[398381585,1765559656621,-594.0,0.00042335,120]
[398381586,1765559656667,-594.0,0.00042335,120]
[398381587,1765559656711,-594.0,0.00042335,120]
[398381588,1765559656753,-594.0,0.00042335,120]
[398381589,1765559656797,-594.0,0.00042335,120]
[398381590,1765559656841,-594.0,0.00042335,120]
[398381591,1765559656887,-1511.0621317,0.000424,120]
[398381592,1765559656932,-3630.590718,0.000424,120]
[398381593,1765559656981,-1981.87413775,0.00042465,30]
[398381594,1765559657027,-342.7605271,0.00042465,30]
[398381595,1765559657077,-500.0,0.00042465,30]
[398381596,1765559657128,-582.76241186,0.00042465,30]
[398381597,1765559657178,-681.75,0.00042465,30]
[398381598,1765559657233,-500.0,0.00042465,30]
[398381599,1765559657280,-500.0,0.00042465,30]
[398381600,1765559657327,-500.0,0.00042465,30]
[398381601,1765559657377,-710.84,0.00042465,30]
[398381602,1765559657427,-713.89,0.00042465,30]
[398381603,1765559657474,-809.28,0.00042465,30]
[398381604,1765559657518,-642.87,0.00042465,30]
[398381605,1765559657564,-500.0,0.00042465,30]
[398381606,1765559657611,-644.63,0.00042465,30]
[398381607,1765559657659,-451.26263683,0.00042465,30]
[398381608,1765559657703,-500.0,0.00042465,30]
[398381609,1765559657746,-500.0,0.00042465,30]
[398381610,1765559657791,-500.0,0.00042465,30]
[398381611,1765559657839,-500.0,0.00042465,30]
[398381612,1765559657883,-500.0,0.00042465,30]
[398381613,1765559657936,-500.0,0.00042465,30]
[398381614,1765559657984,-500.0,0.00042465,30]
[398381615,1765559658033,-563.19,0.00042465,30]
[398381616,1765559658081,-1307.39,0.00042465,30]
[398381617,1765559658128,-500.0,0.00042465,30]
[398381618,1765559658175,-500.0,0.00042465,30]
[398381619,1765559658223,-580.19,0.00042465,30]
[398381620,1765559658271,-500.0,0.00042465,30]
[398381621,1765559658315,-615.99,0.00042465,30]
[398381622,1765559658362,-500.0,0.00042465,30]
[398381623,1765559658414,-500.0,0.00042465,30]
[398381624,1765559658473,-500.0,0.00042465,30]
[398381625,1765559658516,-500.0,0.00042465,30]
[398381626,1765559658561,-629.98,0.00042465,30]
[398381627,1765559658606,-589.28,0.00042465,30]
[398381628,1765559658652,-511.5,0.00042465,30]
[398381629,1765559658696,-504.49,0.00042465,30]
[398381630,1765559658740,-665.47,0.00042465,30]
[398381631,1765559658782,-500.0,0.00042465,30]
[398381632,1765559658825,-500.0,0.00042465,30]
[398381633,1765559658867,-500.0,0.00042465,30]
[398381634,1765559658909,-500.0,0.00042465,30]
[398381635,1765559659223,-500.0,0.00042465,30]
[398381636,1765559659269,-796.43,0.00042465,30]
[398381637,1765559659316,-500.0,0.00042465,30]
[398381638,1765559659365,-667.67,0.00042465,30]
[398381639,1765559659411,-535.37,0.00042465,30]
[398381640,1765559659456,-500.0,0.00042465,30]
[398381641,1765559659501,-500.0,0.00042465,30]
[398381642,1765559659546,-500.0,0.00042465,30]
[398381643,1765559659590,-500.0,0.00042465,30]
[398381644,1765559659633,-620.9,0.00042465,30]
[398381645,1765559659674,-264.14106103,0.00042465,30]
[398381646,1765559659715,-642.19,0.00042465,30]
[398381647,1765559659753,-500.0,0.00042465,30]
[398381648,1765559659796,-500.0,0.00042465,30]
[398381649,1765559659836,-974.75,0.00042465,30]
[398381650,1765559659877,-561.38,0.00042465,30]
[398381651,1765559659918,-507.61,0.00042465,30]
[398381652,1765559659960,-500.0,0.00042465,30]
[398381653,1765559660007,-252.16941545,0.00042465,30]
[398381654,1765559660050,-500.0,0.00042465,30]
[398381655,1765559660091,-500.0,0.00042465,30]
[398381656,1765559660130,-512.36,0.00042465,30]
[398381657,1765559660172,-500.0,0.00042465,30]
[398381658,1765559660216,-834.91,0.00042465,30]
[398381659,1765559660264,-500.0,0.00042465,30]
[398381660,1765559660317,-500.0,0.00042465,30]
[398381661,1765559660370,-50000.0,0.00042466,42]
[398381662,1765559660419,-50000.0,0.00042466,33]
[398381663,1765559660470,-50000.0,0.00042466,34]
[398381664,1765559660517,-50000.0,0.00042466,35]
[398381665,1765559660562,-50000.0,0.00042466,36]
[398381666,1765559660660,-2000.0,0.00042477,120]
[398381667,1765559660702,-200.0,0.00042477,120]
[398381668,1765559660744,-1098.0,0.00042478,30]
[398381669,1765559660790,-500.0,0.00042478,60]
[398381670,1765559660829,-500.0,0.000425,120]
[398381671,1765559660867,-1701.77064795,0.000425,60]
[398381672,1765559660906,-4071.39,0.000425,120]
[398381673,1765559660952,-2000.0,0.000425,60]
[398381674,1765559660995,-150.4,0.00042511,120]
[398381675,1765559661037,-155.64,0.00042549,120]
[398381676,1765559661079,-150.4,0.00042611,120]
[398381677,1765559661119,-1222.0,0.00042646,30]
[398381678,1765559661162,-155.64,0.00042649,120]
[398381679,1765559661206,-150.4,0.00042711,120]
[398381680,1765559661250,-500.0,0.00042739,30]
[398381681,1765559661292,-1401.35,0.00042739,30]
[398381682,1765559661336,-1981.87413775,0.00042739,30]
[398381683,1765559661382,-500.0,0.00042739,30]
[398381684,1765559661428,-681.75,0.00042739,30]
[398381685,1765559661483,-500.0,0.00042739,30]
[398381686,1765559661536,-500.0,0.00042739,30]
[398381687,1765559661583,-507.2842534,0.00042739,30]
[398381688,1765559661630,-710.84,0.00042739,30]
[398381689,1765559661673,-713.89,0.00042739,30]
[398381690,1765559661718,-809.28,0.00042739,30]
[398381691,1765559661760,-642.87,0.00042739,30]
[398381692,1765559661803,-499.05113693,0.00042739,30]
[398381693,1765559661845,-644.63,0.00042739,30]
[398381694,1765559661886,-500.0,0.00042739,30]
[398381695,1765559661927,-500.0,0.00042739,30]
[398381696,1765559661969,-330.09627538,0.00042739,30]
[398381697,1765559662015,-500.0,0.00042739,30]
[398381698,1765559662061,-555.21432904,0.00042739,30]
[398381699,1765559662102,-500.0,0.00042739,30]
[398381700,1765559662144,-192.13269833,0.00042739,30]
[398381701,1765559662192,-563.19,0.00042739,30]
[398381702,1765559662239,-1307.39,0.00042739,30]
[398381703,1765559662284,-500.0,0.00042739,30]
[398381704,1765559662329,-500.0,0.00042739,30]
[398381705,1765559662374,-580.19,0.00042739,30]
[398381706,1765559662419,-500.0,0.00042739,30]
[398381707,1765559662465,-615.99,0.00042739,30]
[398381708,1765559662508,-500.0,0.00042739,30]
[398381709,1765559662551,-500.0,0.00042739,30]
[398381710,1765559662594,-500.0,0.00042739,30]
[398381711,1765559662639,-500.0,0.00042739,30]
[398381712,1765559662683,-629.98,0.00042739,30]
[398381713,1765559662725,-589.28,0.00042739,30]
[398381714,1765559662765,-511.5,0.00042739,30]
[398381715,1765559662810,-504.49,0.00042739,30]
[398381716,1765559662854,-665.47,0.00042739,30]
[398381717,1765559662895,-500.0,0.00042739,30]
[398381718,1765559663311,-500.0,0.00042739,30]
[398381719,1765559663360,-500.0,0.00042739,30]
[398381720,1765559663408,-500.0,0.00042739,30]
[398381721,1765559663458,-500.0,0.00042739,30]
[398381722,1765559663506,-796.43,0.00042739,30]
[398381723,1765559663554,-500.0,0.00042739,30]
[398381724,1765559663604,-667.67,0.00042739,30]
[398381725,1765559663653,-535.37,0.00042739,30]
[398381726,1765559663698,-500.0,0.00042739,30]
[398381727,1765559663745,-500.0,0.00042739,30]
[398381728,1765559663791,-198.02663073,0.00042739,30]
[398381729,1765559663836,-500.0,0.00042739,30]
[398381730,1765559663882,-620.9,0.00042739,30]
[398381731,1765559663931,-642.19,0.00042739,30]
[398381732,1765559663980,-500.0,0.00042739,30]
[398381733,1765559664036,-241.76105488,0.00042739,30]
[398381734,1765559664083,-974.75,0.00042739,30]
[398381735,1765559664132,-561.38,0.00042739,30]
[398381736,1765559664179,-507.61,0.00042739,30]
[398381737,1765559664227,-500.0,0.00042739,30]
[398381738,1765559664275,-500.0,0.00042739,30]
[398381739,1765559664321,-496.76713088,0.00042739,30]
[398381740,1765559664370,-512.36,0.00042739,30]
[398381741,1765559664417,-500.0,0.00042739,30]
[398381742,1765559664467,-834.91,0.00042739,30]
[398381743,1765559664511,-500.0,0.00042739,30]
[398381744,1765559664560,-500.0,0.00042739,30]
[398381745,1765559664610,-155.64,0.00042749,120]
[398381746,1765559664655,-1100.0,0.00042752,60]
[398381747,1765559664707,-1500.0,0.00042752,60]
[398381748,1765559664752,-150.4,0.00042811,120]
[398381749,1765559664799,-155.64,0.00042849,120]
[398381750,1765559664843,-150.4,0.00042911,120]
[398381751,1765559664889,-212.73599982,0.00042934,120]
[398381752,1765559664942,-217.21916215,0.00042934,120]
[398381753,1765559664996,-155.64,0.00042949,120]
[398381754,1765559665042,-211.0,0.0004295,30]
[398381755,1765559665087,-1712.5880688,0.00042998,120]
[398381756,1765559665130,-700.0,0.00042999,45]
[398381757,1765559665176,-245.3366207,0.00043,120]
[398381758,1765559665221,-1445.93425762,0.00043,120]
[398381759,1765559665267,-170.0,0.00043,120]
[398381760,1765559665314,-3322.57326747,0.00043,120]
[398381761,1765559665360,-500.0,0.00043,120]
[398381762,1765559665404,-782.24779528,0.00043,120]
[398381763,1765559665449,-1000.0,0.00043,120]
[398381764,1765559665492,-1390.49352565,0.00043,120]
[398381765,1765559665540,-500.0,0.00043,120]
[398381766,1765559665585,-1000.0,0.00043,120]
[398381767,1765559665630,-3999.0,0.00043,120]
[398381768,1765559665677,-150.0,0.00043,60]
[398381769,1765559665731,-150.4,0.00043011,120]
[398381770,1765559665782,-500.0,0.00043013,30]
[398381771,1765559665823,-1401.35,0.00043013,30]
[398381772,1765559665864,-1981.87413775,0.00043013,30]
[398381773,1765559665908,-500.0,0.00043013,30]
[398381774,1765559665949,-681.75,0.00043013,30]
[398381775,1765559665990,-500.0,0.00043013,30]
[398381776,1765559666031,-500.0,0.00043013,30]
[398381777,1765559666073,-710.84,0.00043013,30]
[398381778,1765559666116,-713.89,0.00043013,30]
[398381779,1765559666160,-809.28,0.00043013,30]
[398381780,1765559666207,-642.87,0.00043013,30]
[398381781,1765559666252,-644.63,0.00043013,30]
[398381782,1765559666295,-500.0,0.00043013,30]
[398381783,1765559666337,-154.66465146,0.00043013,30]
[398381784,1765559666459,-500.0,0.00043013,30]
[398381785,1765559666506,-500.0,0.00043013,30]
[398381786,1765559666549,-563.19,0.00043013,30]
[398381787,1765559666592,-1307.39,0.00043013,30]
[398381788,1765559666632,-603.77294684,0.00043013,30]
[398381789,1765559666674,-500.0,0.00043013,30]
[398381790,1765559666712,-580.19,0.00043013,30]
[398381791,1765559666751,-500.0,0.00043013,30]
[398381792,1765559666789,-615.99,0.00043013,30]
[398381793,1765559666827,-500.0,0.00043013,30]
[398381794,1765559666867,-324.94510855,0.00043013,30]
[398381795,1765559666905,-500.0,0.00043013,30]
[398381796,1765559666943,-500.0,0.00043013,30]
[398381797,1765559666985,-629.98,0.00043013,30]
[398381798,1765559667025,-589.28,0.00043013,30]
[398381799,1765559667065,-511.5,0.00043013,30]
[398381800,1765559667106,-504.49,0.00043013,30]
[398381801,1765559667147,-665.47,0.00043013,30]
[398381802,1765559667189,-318.94384431,0.00043013,30]
[398381803,1765559667230,-500.0,0.00043013,30]
[398381804,1765559667269,-500.0,0.00043013,30]
[398381805,1765559667308,-500.0,0.00043013,30]
[398381806,1765559667352,-500.0,0.00043013,30]
[398381807,1765559667394,-796.43,0.00043013,30]
[398381808,1765559667437,-500.0,0.00043013,30]
[398381809,1765559667481,-667.67,0.00043013,30]
[398381810,1765559667522,-535.37,0.00043013,30]
[398381811,1765559667563,-324.65264103,0.00043013,30]
[398381812,1765559667607,-524.63659363,0.00043013,30]
[398381813,1765559667651,-500.0,0.00043013,30]
[398381814,1765559667691,-620.9,0.00043013,30]
[398381815,1765559667732,-642.19,0.00043013,30]
[398381816,1765559667774,-500.0,0.00043013,30]
[398381817,1765559667815,-974.75,0.00043013,30]
[398381818,1765559667855,-561.38,0.00043013,30]
[398381819,1765559667897,-507.61,0.00043013,30]
[398381820,1765559667939,-320.25954402,0.00043013,30]
[398381821,1765559667983,-500.0,0.00043013,30]
[398381822,1765559668025,-512.36,0.00043013,30]
[398381823,1765559668066,-500.0,0.00043013,30]
[398381824,1765559668108,-834.91,0.00043013,30]
[398381825,1765559668150,-500.0,0.00043013,30]
[398381826,1765559668193,-500.0,0.00043013,30]
[398381827,1765559668235,-204.26,0.00043014,120]
[398381828,1765559668276,-500.0,0.00043026,60]
[398381829,1765559668319,-155.64,0.00043049,120]
[398381830,1765559668364,-1222.0,0.00043064,30]
[398381831,1765559668412,-150.4,0.00043111,120]
[398381832,1765559668463,-155.64,0.00043149,120]
[398381833,1765559668506,-1059.207062,0.000432,120]
[398381834,1765559668551,-7804.69834674,0.000432,120]
[398381835,1765559668597,-150.4,0.00043211,120]
[398381836,1765559668640,-4028.8673,0.0004322,30]
[398381837,1765559668684,-155.64,0.00043249,120]
[398381838,1765559668725,-500.0,0.00043287,30]